bitfinex-derivatives/quotes_BTCF0:USTF0_20241203
["timestamp","ask_amount","ask_price","bid_price","bid_amount"]
[1733227550122,0.00604,94834.0,94833.0,0.39018964]
[1733227550308,0.00604,94834.0,94833.0,0.02938964]
[1733227550516,0.052718,94828.0,94827.0,0.00010579]
[1733227550810,0.187118,94828.0,94827.0,0.00010579]
[1733227551019,0.187118,94828.0,94827.0,0.02936782]
[1733227551214,0.187118,94828.0,94827.0,0.00010579]
[1733227551620,0.192118,94828.0,94827.0,0.00010579]
[1733227551921,0.192118,94828.0,94827.0,0.02961419]
[1733227552313,0.196118,94828.0,94827.0,0.02961419]
[1733227552726,0.201118,94828.0,94827.0,0.02961419]
[1733227553324,0.01404,94828.0,94827.0,0.02961419]
[1733227554929,0.0026,94843.0,94827.0,0.87977419]
[1733227555117,0.0026,94843.0,94842.0,0.3608]
[1733227555428,0.0692,94846.0,94842.0,0.3608]
[1733227555817,0.0692,94846.0,94845.0,4e-05]
[1733227557031,0.0782,94846.0,94845.0,0.0292011]
[1733227557238,0.0782,94846.0,94845.0,4e-05]
[1733227558528,0.0872,94846.0,94845.0,0.00104]
[1733227558721,0.0782,94846.0,94845.0,0.00104]
[1733227559030,0.0822,94846.0,94845.0,0.00104]
[1733227559622,0.0842,94846.0,94845.0,0.00204]
[1733227561826,0.0852,94846.0,94845.0,0.00104]
[1733227562827,0.0782,94846.0,94845.0,0.00104]
[1733227563035,0.0852,94846.0,94845.0,0.00104]
[1733227564536,0.0782,94846.0,94845.0,0.00104]
[1733227564726,0.0852,94846.0,94845.0,0.00104]
[1733227565522,0.0782,94846.0,94845.0,0.00104]
[1733227565731,0.0852,94846.0,94845.0,0.00104]
[1733227568542,0.137908,94846.0,94845.0,0.00104]
[1733227576432,0.137908,94846.0,94834.0,0.32550187]
[1733227576637,0.052709,94845.0,94841.0,0.052711]
[1733227576941,0.052709,94845.0,94834.0,0.32550187]
[1733227576942,0.052709,94845.0,94842.0,0.05271]
[1733227577332,0.052709,94845.0,94834.0,0.35568694]
[1733227577528,0.0782,94846.0,94845.0,0.052709]
[1733227577728,0.130908,94846.0,94845.0,0.052709]
[1733227578034,0.013,94846.0,94845.0,0.052749]
[1733227578232,0.0026,94855.0,94845.0,0.30004]
[1733227578431,0.00428424,94859.0,94858.0,0.052702]
[1733227578640,0.00168424,94859.0,94858.0,0.052702]
[1733227578834,0.00168424,94859.0,94858.0,0.052742]
[1733227579235,0.00168424,94859.0,94858.0,0.08174478]
[1733227579735,0.00168424,94859.0,94858.0,0.08274478]
[1733227579736,0.01068424,94859.0,94858.0,0.08274478]
[1733227580340,0.0026,94869.0,94868.0,0.052696]
[1733227580651,0.0682,94873.0,94872.0,0.052694]
[1733227580938,0.0682,94873.0,94872.0,0.052734]
[1733227581937,0.0772,94873.0,94872.0,0.053734]
[1733227582442,0.0862,94873.0,94872.0,0.054734]
[1733227584736,0.0862,94873.0,94872.0,0.08467475]
[1733227586439,0.018,94873.0,94872.0,0.44547475]
[1733227590343,0.018,94873.0,94872.0,0.21851475]
[1733227591547,0.018,94873.0,94872.0,0.08467475]
[1733227592547,0.018,94873.0,94872.0,0.44547475]
[1733227596542,0.018,94873.0,94872.0,0.58147475]
[1733227597746,0.018,94873.0,94872.0,0.44547475]
[1733227597948,0.018,94873.0,94872.0,0.58143475]
[1733227604853,0.018,94873.0,94872.0,0.44291653]
[1733227605556,0.018,94873.0,94872.0,0.52505541]
[1733227606852,0.018,94873.0,94872.0,0.38909541]
[1733227607049,0.018,94873.0,94872.0,0.52505541]
[1733227617052,0.018,94873.0,94872.0,0.38909541]
[1733227622258,0.018,94873.0,94866.0,1e-08]
[1733227622259,1.25756,94873.0,94866.0,1e-08]
[1733227622458,1.25756,94873.0,94848.0,0.37840694]
[1733227622459,0.052704,94854.0,94853.0,0.012081]
[1733227622648,0.052704,94854.0,94840.0,0.0053]
[1733227622649,0.49676,94854.0,94848.0,0.02940929]
[1733227622854,0.3608,94853.0,94849.0,0.01318112]
[1733227623164,0.052708,94847.0,94840.0,0.08400971]
[1733227623367,0.3608,94841.0,94840.0,0.08400971]
[1733227623659,0.36088,94841.0,94840.0,0.08400971]
[1733227624850,0.36088,94841.0,94834.0,0.02996654]
[1733227625056,0.36088,94841.0,94839.0,0.052712]
[1733227625462,0.3608,94841.0,94839.0,0.052712]
[1733227625856,0.3628,94841.0,94839.0,0.052712]
[1733227626063,0.3628,94841.0,94834.0,0.02996654]
[1733227626767,0.3628,94841.0,94834.0,0.10376824]
[1733227626962,0.3648,94841.0,94834.0,0.10376824]
[1733227627156,0.3628,94841.0,94834.0,0.05105424]
[1733227627459,0.3628,94841.0,94834.0,0.05205424]
[1733227628253,0.3618,94841.0,94834.0,0.05205424]
[1733227628455,0.414511,94841.0,94834.0,0.05205424]
[1733227628758,0.3618,94841.0,94834.0,0.05205424]
[1733227629065,0.052712,94839.0,94834.0,0.05205424]
[1733227629766,0.3618,94841.0,94834.0,0.05205424]
[1733227630067,0.3618,94841.0,94840.0,4e-05]
[1733227630266,0.413511,94841.0,94840.0,4e-05]
[1733227631159,0.414511,94841.0,94840.0,4e-05]
[1733227631969,0.415511,94841.0,94840.0,4e-05]
[1733227632955,0.417511,94841.0,94840.0,4e-05]
[1733227633662,0.417511,94841.0,94828.0,0.0681]
[1733227633865,0.3648,94841.0,94830.0,0.1334]
[1733227634165,0.3648,94841.0,94829.0,0.09626301]
[1733227634363,0.052714,94836.0,94830.0,0.1334]
[1733227634868,0.3648,94841.0,94830.0,0.1334]
[1733227634869,0.3628,94841.0,94831.0,0.00212001]
[1733227635070,0.052714,94837.0,94830.0,0.1334]
[1733227635266,0.052715,94834.0,94830.0,0.1334]
[1733227635564,0.00011999,94831.0,94829.0,0.09726301]
[1733227635765,0.00011999,94831.0,94830.0,0.13552001]
[1733227636269,0.00011999,94831.0,94830.0,0.13752001]
[1733227636468,0.052713,94837.0,94830.0,0.13752001]
[1733227636671,0.052713,94837.0,94830.0,0.1354]
[1733227636964,0.052713,94837.0,94831.0,0.00212001]
[1733227637176,0.052713,94837.0,94831.0,0.13552001]
[1733227638368,0.3608,94841.0,94831.0,0.13552001]
[1733227638569,0.3608,94841.0,94831.0,0.1334]
[1733227638759,0.413511,94841.0,94840.0,4e-05]
[1733227638963,0.3608,94841.0,94840.0,4e-05]
[1733227639165,0.416104,94853.0,94840.0,0.00216001]
[1733227639359,0.052705,94851.0,94842.0,0.05271]
[1733227639576,0.052705,94851.0,94841.0,0.1994]
[1733227639577,0.3608,94853.0,94852.0,4e-05]
[1733227639868,0.413504,94853.0,94852.0,4e-05]
[1733227640663,0.418504,94853.0,94852.0,0.00104]
[1733227641276,0.418504,94853.0,94852.0,0.00043]
[1733227641467,0.418504,94853.0,94852.0,0.02967952]
[1733227641671,0.418504,94853.0,94852.0,0.00043]
[1733227642380,0.421504,94853.0,94852.0,0.00143]
[1733227643071,0.421504,94853.0,94852.0,0.03079529]
[1733227649883,0.421504,94853.0,94852.0,0.03136529]
[1733227650069,0.421504,94853.0,94852.0,0.002]
[1733227650378,0.554904,94853.0,94852.0,0.002]
[1733227652583,0.549904,94853.0,94852.0,0.001]
[1733227652878,0.554904,94853.0,94852.0,0.002]
[1733227653180,0.554904,94853.0,94836.0,0.0105]
[1733227653181,0.052711,94837.0,94836.0,0.0105]
[1733227653371,0.052715,94831.0,94829.0,0.1895417]
[1733227653572,0.90831101,94837.0,94827.0,0.00010579]
[1733227653771,0.413516,94828.0,94827.0,0.00010579]
[1733227654083,0.54907599,94828.0,94827.0,0.00010579]
[1733227656582,0.55207599,94828.0,94827.0,0.00010579]
[1733227656977,0.55407599,94828.0,94827.0,0.00010579]
[1733227657583,0.55207599,94828.0,94827.0,0.0022258]
[1733227657776,0.55307599,94828.0,94827.0,0.0022258]
[1733227657986,0.36495999,94828.0,94827.0,0.0022258]
[1733227658187,0.00415999,94828.0,94827.0,0.0701258]
[1733227658385,0.00415999,94828.0,94827.0,0.4978258]
[1733227658587,0.00215999,94828.0,94827.0,0.1370258]
[1733227659286,0.00015999,94828.0,94827.0,0.1390258]
[1733227659480,0.00215999,94828.0,94827.0,0.1390258]
[1733227659876,0.00215999,94828.0,94827.0,0.1460258]
[1733227660087,0.00215999,94828.0,94827.0,0.1470258]
[1733227660088,0.00015999,94828.0,94827.0,0.1470258]
[1733227661178,0.00015999,94828.0,94827.0,0.1460258]
[1733227661677,0.00015999,94828.0,94827.0,0.1390258]
[1733227662286,0.00015999,94828.0,94827.0,0.1410258]
[1733227662479,0.36095999,94828.0,94827.0,0.1410258]
[1733227662680,0.36095999,94828.0,94827.0,0.1430258]
[1733227662983,0.36095999,94828.0,94827.0,0.1400258]
[1733227663589,0.36095999,94828.0,94827.0,0.1380258]
[1733227663786,0.36095999,94828.0,94827.0,0.0711258]
[1733227664893,0.36095999,94828.0,94827.0,0.06900579]
[1733227665283,0.41367499,94828.0,94827.0,0.06900579]
[1733227666384,0.41467499,94828.0,94827.0,0.06800579]
[1733227666585,0.36195999,94828.0,94818.0,0.12819912]
[1733227666783,0.00115999,94828.0,94818.0,0.12819912]
[1733227666984,0.00015999,94819.0,94818.0,0.21015225]
[1733227667185,0.00015999,94828.0,94822.0,0.052718]
[1733227667389,0.00015999,94828.0,94824.0,0.3608]
[1733227667596,0.00015999,94828.0,94824.0,0.413517]
[1733227668681,0.00015999,94828.0,94827.0,0.001]
[1733227669286,0.00015999,94828.0,94826.0,0.052716]
[1733227669695,4e-05,94827.0,94826.0,0.052716]
[1733227669990,0.00015999,94828.0,94827.0,0.00096]
[1733227670296,0.00015999,94828.0,94827.0,0.001]
[1733227670999,0.00015999,94828.0,94827.0,0.0672]
[1733227671987,0.00015999,94828.0,94827.0,0.06624]
[1733227672593,0.00015999,94828.0,94827.0,0.06724]
[1733227672786,0.00015999,94828.0,94827.0,0.06924]
[1733227673095,0.05287499,94828.0,94827.0,0.06924]
[1733227673286,0.05287499,94828.0,94827.0,0.07224]
[1733227673795,0.05287499,94828.0,94827.0,0.00604]
[1733227674994,0.05287499,94828.0,94827.0,0.00404]
[1733227675298,0.41467499,94828.0,94827.0,4e-05]
[1733227679596,0.41467499,94828.0,94827.0,0.00104]
[1733227681287,0.41467499,94828.0,94827.0,0.00304]
[1733227681693,0.41367499,94828.0,94827.0,0.00304]
[1733227682499,0.41367499,94828.0,94827.0,0.00104]
[1733227684596,0.41367499,94828.0,94827.0,4e-05]
[1733227684791,0.41367499,94828.0,94827.0,0.00104]
[1733227685393,0.00015999,94828.0,94827.0,0.053756]
[1733227686202,0.0026,94837.0,94836.0,0.052711]
[1733227686402,0.052704,94848.0,94842.0,0.052707]
[1733227686907,0.413505,94847.0,94846.0,0.00019999]
[1733227688609,0.416505,94847.0,94846.0,0.00019999]
[1733227688802,0.419505,94847.0,94846.0,0.00019999]
[1733227689203,0.419505,94847.0,94846.0,0.02924395]
[1733227689507,0.419505,94847.0,94846.0,0.00019999]
[1733227692801,0.416505,94847.0,94846.0,0.00019999]
[1733227693105,0.417505,94847.0,94846.0,0.00019999]
[1733227694295,0.417505,94847.0,94830.0,0.13869912]
[1733227694296,0.417505,94847.0,94831.0,0.01083795]
[1733227694496,0.417505,94847.0,94832.0,0.052712]
[1733227694497,0.052713,94833.0,94832.0,0.052712]
[1733227695204,0.3608,94837.0,94831.0,0.01083795]
[1733227695205,0.052753,94832.0,94831.0,0.01083795]
[1733227695800,0.048753,94832.0,94831.0,0.01083795]
[1733227696014,0.048753,94832.0,94831.0,0.04006324]
[1733227696308,0.048753,94832.0,94831.0,0.02922529]
[1733227696512,0.048753,94832.0,94831.0,0.001]
[1733227697109,0.048753,94832.0,94831.0,0.004]
[1733227698210,0.048753,94832.0,94831.0,0.003]
[1733227698906,0.052753,94832.0,94831.0,0.002]
[1733227699508,0.054753,94832.0,94831.0,0.001]
[1733227699715,0.054753,94832.0,94824.0,0.08228232]
[1733227699716,0.00204,94832.0,94824.0,0.08228232]
[1733227700009,4e-05,94825.0,94824.0,0.08228232]
[1733227702012,0.051756,94826.0,94824.0,0.02956532]
[1733227702315,0.0026,94835.0,94825.0,4e-05]
[1733227702521,0.052716,94826.0,94825.0,4e-05]
[1733227703212,0.052717,94825.0,94824.0,0.005]
[1733227703609,0.052757,94825.0,94824.0,0.005]
[1733227704113,0.052757,94825.0,94824.0,0.001]
[1733227704311,0.047757,94825.0,94824.0,0.001]
[1733227704716,0.044757,94825.0,94823.0,0.03182156]
[1733227705213,4e-05,94824.0,94823.0,0.03182156]
[1733227705922,0.044717,94825.0,94824.0,0.00196]
[1733227706114,0.044717,94825.0,94824.0,0.00496]
[1733227706717,0.044717,94825.0,94824.0,0.00196]
[1733227707422,0.044717,94825.0,94824.0,0.00496]
[1733227708118,0.052714,94831.0,94824.0,0.057677]
[1733227708310,0.052714,94831.0,94824.0,0.003]
[1733227708515,0.052714,94830.0,94824.0,0.055717]
[1733227708711,0.052714,94830.0,94826.0,0.052716]
[1733227708911,0.3608,94837.0,94824.0,0.003]
[1733227709207,0.052713,94831.0,94830.0,7.999e-05]
[1733227709917,0.3608,94837.0,94830.0,7.999e-05]
[1733227710120,0.44304,94869.0,94835.0,0.3608]
[1733227710121,0.25187625,94854.0,94835.0,0.3608]
[1733227710315,0.3608,94856.0,94837.0,0.12819912]
[1733227710510,0.052703,94849.0,94846.0,7.999e-05]
[1733227710713,0.052701,94854.0,94846.0,7.999e-05]
[1733227710916,0.3608,94858.0,94846.0,7.999e-05]
[1733227711218,0.413498,94858.0,94857.0,7.999e-05]
[1733227712711,0.418498,94858.0,94857.0,7.999e-05]
[1733227714127,0.425498,94858.0,94857.0,0.00107999]
[1733227714417,0.425498,94858.0,94857.0,0.03149777]
[1733227714627,0.425498,94858.0,94857.0,0.00107999]
[1733227715214,0.425498,94858.0,94857.0,0.03123358]
[1733227722427,0.3728,94858.0,94848.0,0.07211428]
[1733227722628,0.052702,94853.0,94852.0,0.052701]
[1733227724123,0.3638,94858.0,94848.0,0.10223275]
[1733227724324,0.052701,94852.0,94848.0,0.15493575]
[1733227724528,4e-05,94849.0,94848.0,0.15493575]
[1733227725125,4e-05,94849.0,94848.0,0.10223275]
[1733227725320,0.052743,94849.0,94848.0,0.10223275]
[1733227725521,0.052743,94849.0,94848.0,0.03011847]
[1733227725729,0.052743,94849.0,94848.0,0.13344]
[1733227727126,0.059743,94849.0,94848.0,0.13344]
[1733227728430,0.059743,94849.0,94846.0,0.02964055]
[1733227728431,0.052704,94847.0,94846.0,0.02964055]
[1733227728626,0.38745455,94847.0,94846.0,0.02964055]
[1733227728823,0.38749455,94847.0,94846.0,0.02964055]
[1733227729024,0.02669455,94847.0,94846.0,0.02964055]
[1733227729734,0.02969455,94847.0,94846.0,0.02964055]
[1733227730744,0.00504,94847.0,94846.0,0.16308055]
[1733227731230,0.00504,94847.0,94846.0,0.21578555]
[1733227735938,0.00504,94847.0,94846.0,0.08234555]
[1733227736441,0.00504,94847.0,94846.0,0.21578555]
[1733227737929,0.00504,94847.0,94846.0,0.02964055]
[1733227738137,0.057744,94847.0,94846.0,0.16308055]
[1733227738438,0.057744,94847.0,94846.0,0.02964055]
[1733227741137,0.00504,94847.0,94846.0,0.08234555]
[1733227741442,0.00404,94847.0,94846.0,0.08234555]
[1733227745037,0.00158159,94866.0,94865.0,0.052694]
[1733227745332,0.00158159,94866.0,94865.0,0.546934]
[1733227745538,8.72e-05,94876.0,94875.0,0.052688]
[1733227745849,8.72e-05,94876.0,94875.0,0.05272801]
[1733227746735,8.72e-05,94876.0,94875.0,0.08184574]
[1733227746936,8.72e-05,94876.0,94875.0,0.02915774]
[1733227747240,0.0527752,94876.0,94875.0,0.02915774]
[1733227748540,0.0547752,94876.0,94875.0,0.02915774]
[1733227748733,0.0567752,94876.0,94875.0,0.02915774]
[1733227752155,0.0547752,94876.0,94875.0,0.02915774]
[1733227752345,0.0567752,94876.0,94875.0,0.02915774]
[1733227756457,0.0040872,94876.0,94871.0,0.02108557]
[1733227756954,4e-05,94872.0,94871.0,0.02108557]
[1733227757654,4e-05,94872.0,94871.0,0.02208557]
[1733227757854,0.052731,94872.0,94871.0,0.02208557]
[1733227759645,0.052731,94872.0,94871.0,0.001]
[1733227759847,0.413531,94872.0,94871.0,0.001]
[1733227760052,0.051691,94871.0,94870.0,0.02950438]
[1733227760252,0.051691,94871.0,94863.0,0.1334]
[1733227760253,0.052694,94865.0,94864.0,0.0026]
[1733227760550,0.052694,94865.0,94860.0,0.26145121]
[1733227760551,0.052696,94862.0,94860.0,0.26145121]
[1733227760773,0.052696,94862.0,94860.0,0.1334]
[1733227760961,0.052736,94862.0,94860.0,0.1334]
[1733227761262,0.052736,94862.0,94861.0,0.08923966]
[1733227761956,0.052736,94862.0,94861.0,0.09123966]
[1733227762257,0.051736,94862.0,94861.0,0.09123966]
[1733227762856,0.051736,94862.0,94861.0,0.09523966]
[1733227763756,0.412536,94862.0,94861.0,0.09523966]
[1733227763951,0.412536,94862.0,94861.0,0.03483966]
[1733227765555,0.412536,94862.0,94861.0,0.03283966]
[1733227765960,0.412536,94862.0,94861.0,0.003]
[1733227766163,0.412536,94862.0,94858.0,0.0026]
[1733227766164,0.052698,94859.0,94858.0,0.0026]
[1733227766357,0.048698,94859.0,94852.0,0.0026]
[1733227766557,0.048698,94859.0,94846.0,7.999e-05]
[1733227766558,0.052702,94852.0,94846.0,0.00267999]
[1733227766866,0.051745,94847.0,94846.0,0.03287569]
[1733227767063,0.051745,94847.0,94846.0,7.999e-05]
[1733227768057,0.052745,94847.0,94846.0,7.999e-05]
[1733227769463,0.053745,94847.0,94846.0,7.999e-05]
[1733227769857,0.052745,94847.0,94846.0,7.999e-05]
[1733227770055,0.056745,94847.0,94846.0,7.999e-05]
[1733227772560,0.052707,94843.0,94842.0,0.02992273]
[1733227772766,0.052707,94843.0,94840.0,0.0026]
[1733227772767,0.3608,94843.0,94840.0,0.0026]
[1733227772963,0.052711,94836.0,94835.0,0.0026]
[1733227773272,4e-05,94836.0,94830.0,0.12805121]
[1733227773570,0.052714,94830.0,94829.0,0.055315]
[1733227773767,0.052714,94830.0,94829.0,0.052715]
[1733227773968,0.052754,94830.0,94829.0,0.08182008]
[1733227774576,0.050754,94830.0,94829.0,0.08182008]
[1733227774765,0.050754,94830.0,94829.0,0.02910508]
[1733227774961,4e-05,94830.0,94824.0,0.116718]
[1733227775165,0.052715,94828.0,94824.0,0.116718]
[1733227775362,0.052755,94828.0,94825.0,0.052717]
[1733227775570,0.052755,94828.0,94827.0,0.15176368]
[1733227776679,0.049755,94828.0,94827.0,0.15176368]
[1733227777069,4e-05,94828.0,94827.0,0.15176368]
[1733227777269,0.00104,94828.0,94827.0,0.15876368]
[1733227780176,0.053755,94828.0,94827.0,0.15876368]
[1733227782372,0.053755,94828.0,94827.0,0.01882011]
[1733227786281,0.053755,94828.0,94827.0,0.007]
[1733227790375,0.187155,94828.0,94827.0,0.007]
[1733227791982,0.191155,94828.0,94827.0,0.007]
[1733227792278,0.191155,94828.0,94827.0,0.001]
[1733227792279,0.197155,94828.0,94827.0,0.001]
[1733227793370,0.052718,94824.0,94823.0,6.4e-07]
[1733227793577,0.052718,94824.0,94810.0,0.00158198]
[1733227793578,0.052725,94811.0,94810.0,6.2e-07]
[1733227793881,0.547005,94811.0,94810.0,6.2e-07]
[1733227794178,0.847005,94811.0,94810.0,6.2e-07]
[1733227794369,0.00011507,94810.0,94790.0,0.0105]
[1733227794569,0.00011507,94810.0,94780.0,0.0105]
[1733227794570,0.052737,94790.0,94780.0,0.0105]
[1733227794776,0.186177,94790.0,94777.0,0.00010261]
[1733227794975,0.186217,94790.0,94784.0,0.03029136]
[1733227795179,0.186217,94790.0,94777.0,0.00010261]
[1733227795382,0.184217,94790.0,94777.0,0.00010261]
[1733227795683,0.184217,94790.0,94782.0,0.02963774]
[1733227796187,0.185217,94790.0,94789.0,0.00735]
[1733227796489,0.186217,94790.0,94789.0,0.00735]
[1733227800489,0.052777,94790.0,94789.0,0.00735]
[1733227800787,0.186217,94790.0,94789.0,0.00735]
[1733227802085,0.052777,94790.0,94789.0,0.00735]
[1733227809587,0.113177,94790.0,94789.0,0.00735]
[1733227809789,0.171377,94790.0,94789.0,0.006]
[1733227810690,0.171377,94790.0,94777.0,0.00010261]
[1733227810691,0.052746,94778.0,94777.0,0.00010261]
[1733227810985,0.413586,94778.0,94777.0,0.00010261]
[1733227811979,0.414586,94778.0,94777.0,0.00010261]
[1733227812390,0.36184,94778.0,94769.0,0.00098343]
[1733227812591,0.413553,94770.0,94769.0,0.052751]
[1733227812791,0.36084,94770.0,94766.0,0.0859221]
[1733227813095,0.052793,94767.0,94766.0,0.0859221]
[1733227813495,0.052793,94767.0,94766.0,0.08603551]
[1733227814585,0.053793,94767.0,94766.0,0.08603551]
[1733227814793,0.053793,94767.0,94766.0,0.10714769]
[1733227815390,0.054793,94767.0,94766.0,0.10714769]
[1733227815889,0.052753,94767.0,94766.0,0.10714769]
[1733227816086,0.052753,94767.0,94766.0,0.05164769]
[1733227817086,0.053753,94767.0,94766.0,0.05164769]
[1733227817690,0.054753,94767.0,94766.0,0.05264769]
[1733227818396,0.053753,94767.0,94766.0,0.05264769]
[1733227818597,0.053753,94767.0,94766.0,0.03153551]
[1733227819186,0.053753,94767.0,94766.0,0.00111341]
[1733227819693,0.053753,94767.0,94766.0,0.00955341]
[1733227822494,0.187193,94767.0,94766.0,0.00955341]
[1733227824393,0.053753,94767.0,94766.0,0.06230641]
[1733227825097,0.053753,94767.0,94766.0,0.00955341]
[1733227826395,0.001,94767.0,94766.0,0.06230641]
[1733227828797,0.001,94767.0,94766.0,0.11970641]
[1733227830792,0.001,94767.0,94766.0,0.06695341]
[1733227831501,0.001,94767.0,94766.0,0.11970641]
[1733227834696,0.0105,94771.0,94766.0,0.11970641]
[1733227834697,0.0105,94771.0,94770.0,0.052751]
[1733227835496,0.0105,94771.0,94770.0,0.052791]
[1733227836009,0.0105,94771.0,94770.0,0.24212289]
[1733227836309,0.0105,94771.0,94770.0,0.24326804]
[1733227836504,0.0105,94771.0,94770.0,0.27331344]
[1733227836711,0.0105,94771.0,94770.0,0.40671344]
[1733227837199,0.0105,94771.0,94770.0,0.21719889]
[1733227837400,0.0115,94771.0,94770.0,0.41990772]
[1733227837602,0.0115,94771.0,94770.0,0.23039229]
[1733227837808,0.0115,94771.0,94770.0,0.4067648]
[1733227838201,0.0115,94771.0,94770.0,0.21719889]
[1733227841207,0.0115,94771.0,94770.0,0.22563889]
[1733227841909,0.3608,94791.0,94770.0,0.17288789]
[1733227842211,0.3608,94800.0,94788.0,0.052781]
[1733227842509,0.052733,94802.0,94788.0,0.052781]
[1733227842708,0.052731,94806.0,94798.0,0.052735]
[1733227842903,0.09007079,94805.0,94799.0,0.0561]
[1733227843107,0.36136001,94812.0,94809.0,0.052729]
[1733227843108,0.3608,94812.0,94809.0,0.052729]
[1733227843304,0.3608,94812.0,94800.0,0.1334]
[1733227843506,0.413528,94812.0,94807.0,0.05273]
[1733227843707,0.413528,94812.0,94800.0,0.1334]
[1733227843910,0.3608,94812.0,94808.0,0.05273]
[1733227844109,0.3608,94812.0,94803.0,0.052732]
[1733227844411,0.3608,94812.0,94800.0,0.1334]
[1733227844611,0.3608,94812.0,94801.0,0.052734]
[1733227844815,0.413528,94812.0,94805.0,0.052731]
[1733227845013,0.00611507,94810.0,94806.0,0.052731]
[1733227845909,0.00611507,94810.0,94807.0,0.05273]
[1733227846218,0.00811507,94810.0,94807.0,0.05273]
[1733227846712,0.01311507,94810.0,94807.0,0.05273]
[1733227846913,0.01311507,94810.0,94803.0,0.001]
[1733227846914,0.052731,94807.0,94803.0,0.001]
[1733227847114,0.01311507,94810.0,94803.0,0.001]
[1733227847115,0.3608,94804.0,94803.0,0.001]
[1733227847416,0.36084,94804.0,94802.0,0.052733]
[1733227847803,0.36084,94804.0,94799.0,0.02963341]
[1733227847804,0.36084,94804.0,94803.0,0.052733]
[1733227848216,0.36584,94804.0,94803.0,0.07484297]
[1733227848513,0.3658,94804.0,94803.0,0.07484297]
[1733227849203,0.3738,94804.0,94803.0,0.07584297]
[1733227849707,0.3738,94804.0,94803.0,0.10221297]
[1733227850718,0.3688,94804.0,94803.0,0.10221297]
[1733227850921,0.3688,94804.0,94803.0,0.23557297]
[1733227851212,0.3688,94804.0,94803.0,0.24711297]
[1733227851213,0.3608,94804.0,94803.0,0.24711297]
[1733227854316,0.3608,94804.0,94803.0,0.11375297]
[1733227856722,0.00011507,94810.0,94803.0,0.47455297]
[1733227856926,0.00011507,94810.0,94809.0,0.052729]
[1733227857519,0.00011507,94810.0,94809.0,0.052769]
[1733227858339,0.00111507,94810.0,94809.0,0.052769]
[1733227859129,0.00111507,94810.0,94809.0,0.08182469]
[1733227859630,0.00111507,94810.0,94809.0,0.09025469]
[1733227859823,1e-08,94810.0,94809.0,0.09025469]
[1733227860033,0.00100001,94810.0,94809.0,0.09025469]
[1733227860433,0.3608,94822.0,94821.0,0.052723]
[1733227860624,0.3608,94822.0,94821.0,0.186083]
[1733227860932,0.3608,94822.0,94821.0,0.18620649]
[1733227861929,0.3718,94822.0,94821.0,0.18620649]
[1733227862429,0.3718,94822.0,94821.0,0.00012349]
[1733227862633,0.424522,94822.0,94821.0,0.00012349]
[1733227863137,0.3718,94822.0,94821.0,0.00012349]
[1733227863327,0.3718,94822.0,94821.0,0.03011501]
[1733227863525,0.3718,94822.0,94821.0,0.00012349]
[1733227864127,0.424522,94822.0,94821.0,0.00012349]
[1733227865133,0.785322,94822.0,94821.0,0.00012349]
[1733227865523,0.052724,94818.0,94817.0,0.0026]
[1733227865723,0.052724,94818.0,94808.0,0.0106]
[1733227865724,0.052729,94810.0,94808.0,0.0106]
[1733227865929,0.413529,94810.0,94803.0,0.03691]
[1733227866125,0.413529,94810.0,94803.0,0.0665156]
[1733227866535,0.413529,94810.0,94806.0,9.061e-05]
[1733227867943,0.3608,94810.0,94806.0,9.061e-05]
[1733227868238,0.41357,94807.0,94806.0,9.061e-05]
[1733227869337,0.36084,94807.0,94806.0,0.00109061]
[1733227869835,4e-05,94807.0,94806.0,0.00109061]
[1733227871236,4e-05,94807.0,94806.0,9.061e-05]
[1733227871629,0.00104,94807.0,94806.0,9.061e-05]
[1733227872130,0.00104,94807.0,94806.0,0.00852061]
[1733227872332,4e-05,94807.0,94806.0,0.00852061]
[1733227872526,0.00204,94807.0,94806.0,0.00852061]
[1733227874539,0.00104,94807.0,94806.0,0.00852061]
[1733227876056,4e-05,94807.0,94806.0,0.00852061]
[1733227877433,4e-05,94807.0,94806.0,0.19808652]
[1733227877636,4e-05,94807.0,94806.0,0.03062263]
[1733227877831,4e-05,94807.0,94806.0,0.04116263]
[1733227878234,4e-05,94807.0,94806.0,0.05435056]
[1733227880444,4e-05,94807.0,94806.0,0.08071056]
[1733227880836,0.05272,94826.0,94806.0,0.08071056]
[1733227881047,0.0026,94824.0,94816.0,0.12805121]
[1733227881241,0.3608,94827.0,94825.0,4e-05]
[1733227881651,0.3608,94827.0,94826.0,4e-05]
[1733227882646,0.3698,94827.0,94826.0,4e-05]
[1733227883940,0.3698,94827.0,94826.0,0.02932859]
[1733227884543,0.3758,94827.0,94826.0,0.03132859]
[1733227885754,0.3758,94827.0,94826.0,0.03975859]
[1733227886348,0.015,94827.0,94826.0,0.03975859]
[1733227886550,0.015,94827.0,94826.0,0.09247859]
[1733227886749,0.015,94827.0,94826.0,0.58655859]
[1733227888452,0.00272209,94834.0,94833.0,0.052716]
[1733227888644,0.00012209,94834.0,94833.0,0.052716]
[1733227888845,0.00012209,94834.0,94833.0,0.052756]
[1733227889241,0.00012209,94834.0,94833.0,0.186036]
[1733227890851,0.01612209,94834.0,94833.0,0.188036]
[1733227891552,0.01612209,94834.0,94833.0,0.187036]
[1733227891761,0.01512209,94834.0,94833.0,0.188036]
[1733227892449,0.01512209,94834.0,94833.0,0.198576]
[1733227893367,0.01512209,94834.0,94833.0,0.065296]
[1733227893552,0.01512209,94834.0,94833.0,0.01258]
[1733227893553,0.06783709,94834.0,94833.0,0.01258]
[1733227893857,0.01512209,94834.0,94833.0,0.01258]
[1733227894255,0.01512209,94834.0,94833.0,0.065296]
[1733227895556,0.01512209,94834.0,94833.0,0.01258]
[1733227897862,0.01512209,94834.0,94833.0,0.065296]
[1733227901560,0.01512209,94834.0,94833.0,0.073726]
[1733227907067,0.01512209,94834.0,94833.0,0.100086]
[1733227911364,0.01512209,94834.0,94833.0,0.233286]
[1733227912864,0.01512209,94834.0,94833.0,0.100086]
[1733227915871,0.00112209,94834.0,94833.0,0.098086]